fUSD/lending_fUSD_20240614
["ID","MTS","AMOUNT","RATE_DAILY","PERIOD"]
[329428295,1718334650836,-323.12138,0.0002428,7]
[329428296,1718334650859,-184.633122,0.0002428,7]
[329428297,1718334650870,-151.0,0.0002428,7]
[329428298,1718334650881,-33367.92346921,0.000243,10]
[329428299,1718334650899,-305.0,0.000243,2]
[329428300,1718334650912,-150.0,0.000243,4]
[329428301,1718334650937,-3664.0863551,0.00024356,2]
[329428302,1718334650948,-152.82,0.0002437,2]
[329428303,1718334650962,-152.82,0.0002437,2]
[329428304,1718334650979,-152.82,0.0002437,2]
[329428305,1718334651014,-151.0,0.00024377,7]
[329428306,1718334651029,-323.12138,0.00024377,7]
[329428307,1718334651044,-323.12138,0.00024377,7]
[329428308,1718334651069,-95655.7577878,0.00024377,2]
[329428309,1718334651095,-151.0,0.00024377,7]
[329428310,1718334651112,-812.61550684,0.00024378,2]
[329428311,1718334651136,-155.65914059,0.00024378,2]
[329428312,1718334651157,-544.4766746,0.00024378,2]
[329428313,1718334651171,-299.08936989,0.00024378,2]
[329428314,1718334651193,-265.42375356,0.00024378,2]
[329428315,1718334651240,-608.25367935,0.00024378,2]
[329428316,1718334651290,-11473.55458813,0.00024379,2]
[329428317,1718334651308,-458.93168001,0.00024379,2]
[329428318,1718334651348,-295.79776711,0.00024379,2]
[329428319,1718334651359,-173.29960243,0.00024379,2]
[329428320,1718334651372,-162.05797759,0.00024379,2]
[329428321,1718334651383,-458.24934624,0.00024379,2]
[329428322,1718334651396,-500.0,0.00024379,2]
[329428323,1718334651409,-500.0,0.00024379,2]
[329428324,1718334651421,-445158.67890795,0.0002438,2]
[329428325,1718334651435,-20138.52404176,0.0002438,2]
[329428326,1718334651446,-731.70509038,0.0002438,7]
[329428327,1718334651469,-103739.57570836,0.0002438,2]
[329428328,1718334651501,-159.078988,0.0002438,7]
[329428329,1718334651515,-151.0,0.0002438,7]
[329428330,1718334651528,-151.0,0.0002438,7]
[329428331,1718334651546,-472.6810899,0.0002438,2]
[329428332,1718334651558,-204.693163,0.0002438,7]
[329428333,1718334651600,-204.693163,0.0002438,7]
[329428334,1718334651631,-204.693163,0.0002438,7]
[329428335,1718334651651,-204.693163,0.0002438,7]
[329428336,1718334651674,-167.90195779,0.0002438,2]
[329428337,1718334651694,-165.619719,0.0002438,7]
[329428338,1718334651705,-2274.15208,0.0002438,2]
[329428339,1718334651726,-226.8208707,0.0002438,2]
[329428340,1718334651738,-323.12138,0.0002438,7]
[329428341,1718334651749,-323.12138,0.0002438,7]
[329428342,1718334651759,-323.12138,0.0002438,7]
[329428343,1718334651771,-323.12138,0.0002438,7]
[329428344,1718334651790,-14341.43973271,0.0002438,2]
[329428345,1718334651829,-151.0,0.0002438,7]
[329428346,1718334651840,-151.0,0.0002438,7]
[329428347,1718334651858,-331.62009663,0.00024382,2]
[329428348,1718334651880,-502.57053334,0.00024382,2]
[329428349,1718334651892,-500.0,0.00024383,2]
[329428350,1718334651919,-500.0,0.00024383,2]
[329428351,1718334651934,-500.0,0.00024383,2]
[329428352,1718334651960,-378.04053815,0.00024383,2]
[329428353,1718334651975,-500.0,0.00024383,2]
[329428354,1718334651995,-500.0,0.00024383,2]
[329428355,1718334652016,-643.87923126,0.00024383,2]
[329428356,1718334652047,-516.90581913,0.00024383,2]
[329428357,1718334652088,-532.28,0.00024383,2]
[329428358,1718334652101,-500.0,0.00024383,2]
[329428359,1718334652117,-500.0,0.00024383,2]
[329428360,1718334652168,-500.0,0.00024383,2]
[329428361,1718334652196,-500.0,0.00024383,2]
[329428362,1718334652208,-500.0,0.00024383,2]
[329428363,1718334652221,-500.0,0.00024383,2]
[329428364,1718334652233,-500.0,0.00024383,2]
[329428365,1718334652246,-500.0,0.00024383,2]
[329428366,1718334652258,-500.0,0.00024383,2]
[329428367,1718334652302,-500.0,0.00024383,2]
[329428368,1718334652314,-500.0,0.00024383,2]
[329428369,1718334652332,-500.0,0.00024383,2]
[329428370,1718334652347,-350.85055497,0.00024383,2]
[329428371,1718334652364,-500.0,0.00024383,2]
[329428372,1718334652388,-517.78740611,0.00024383,2]
[329428373,1718334652412,-151.0,0.00024383,7]
[329428374,1718334652438,-155.708245,0.00024383,7]
[329428375,1718334652454,-500.0,0.00024383,2]
[329428376,1718334652468,-500.0,0.00024383,2]
[329428377,1718334652491,-363.64278633,0.00024383,2]
[329428378,1718334652503,-500.0,0.00024383,2]
[329428379,1718334652547,-571.67115333,0.00024383,2]
[329428380,1718334652568,-500.0,0.00024383,2]
[329428381,1718334652609,-500.0,0.00024383,2]
[329428382,1718334652661,-500.0,0.00024383,2]
[329428383,1718334652699,-500.0,0.00024383,2]
[329428384,1718334652714,-500.0,0.00024383,2]
[329428385,1718334652734,-500.0,0.00024383,2]
[329428386,1718334652749,-500.0,0.00024383,2]
[329428387,1718334652765,-500.0,0.00024383,2]
[329428388,1718334652777,-500.0,0.00024383,2]
[329428389,1718334652828,-500.0,0.00024383,2]
[329428390,1718334652843,-500.0,0.00024383,2]
[329428391,1718334652856,-500.0,0.00024383,2]
[329428392,1718334652869,-526.46,0.00024383,2]
[329428393,1718334652890,-500.0,0.00024383,2]
[329428394,1718334652912,-500.0,0.00024383,2]
[329428395,1718334652927,-500.0,0.00024383,2]
[329428396,1718334652951,-500.0,0.00024383,2]
[329428397,1718334652973,-500.0,0.00024383,2]
[329428398,1718334652992,-150.0,0.00024383,2]
[329428399,1718334653027,-500.0,0.00024383,2]
[329428400,1718334653040,-500.0,0.00024383,2]
[329428401,1718334653066,-500.0,0.00024383,2]
[329428402,1718334653103,-500.0,0.00024383,2]
[329428403,1718334653120,-500.0,0.00024383,2]
[329428404,1718334653136,-500.0,0.00024383,2]
[329428405,1718334653151,-204.693163,0.00024383,7]
[329428406,1718334653170,-204.693163,0.00024383,7]
[329428407,1718334653181,-500.0,0.00024383,2]
[329428408,1718334653193,-204.693163,0.00024383,7]
[329428409,1718334653203,-204.693163,0.00024383,7]
[329428410,1718334653221,-500.0,0.00024383,2]
[329428411,1718334653252,-500.0,0.00024383,2]
[329428412,1718334653263,-500.0,0.00024383,2]
[329428413,1718334653294,-500.0,0.00024383,2]
[329428414,1718334653345,-500.0,0.00024383,2]
[329428415,1718334653370,-500.0,0.00024383,2]
[329428416,1718334653399,-500.0,0.00024383,2]
[329428417,1718334653413,-500.0,0.00024383,2]
[329428418,1718334653447,-445.1725136,0.00024383,2]
[329428419,1718334653500,-500.0,0.00024383,2]
[329428420,1718334653544,-500.0,0.00024383,2]
[329428421,1718334653580,-337.96654223,0.00024383,2]
[329428422,1718334653591,-500.0,0.00024383,2]
[329428423,1718334653602,-500.0,0.00024383,2]
[329428424,1718334653621,-500.0,0.00024383,2]
[329428425,1718334653648,-500.0,0.00024383,2]
[329428426,1718334653664,-500.0,0.00024383,2]
[329428427,1718334653681,-500.0,0.00024383,2]
[329428428,1718334653694,-500.0,0.00024383,2]
[329428429,1718334653705,-500.0,0.00024383,2]
[329428430,1718334653728,-500.0,0.00024383,2]
[329428431,1718334653740,-500.0,0.00024383,2]
[329428432,1718334653762,-500.0,0.00024383,2]
[329428433,1718334653782,-761.79,0.00024383,2]
[329428434,1718334653806,-500.0,0.00024383,2]
[329428435,1718334653837,-500.0,0.00024383,2]
[329428436,1718334653855,-500.0,0.00024383,2]
[329428437,1718334653868,-153.12,0.00024383,2]
[329428438,1718334653885,-180.74,0.00024383,2]
[329428439,1718334653899,-567.0,0.00024383,2]
[329428440,1718334653926,-500.0,0.00024383,2]
[329428441,1718334653942,-254.04,0.00024383,2]
[329428442,1718334653973,-500.0,0.00024383,2]
[329428443,1718334654008,-500.0,0.00024383,2]
[329428444,1718334654024,-367.90856649,0.00024383,2]
[329428445,1718334654052,-500.0,0.00024383,2]
[329428446,1718334654071,-500.0,0.00024383,2]
[329428447,1718334654095,-615.2,0.00024383,2]
[329428448,1718334654109,-561.2,0.00024383,2]
[329428449,1718334654128,-500.0,0.00024383,2]
[329428450,1718334654147,-620.78,0.00024383,2]
[329428451,1718334654159,-875.03,0.00024383,2]
[329428452,1718334654177,-500.0,0.00024383,2]
[329428453,1718334654208,-500.0,0.00024383,2]
[329428454,1718334654230,-500.0,0.00024383,2]
[329428455,1718334654257,-628.64,0.00024383,2]
[329428456,1718334654280,-1336.92,0.00024383,2]
[329428457,1718334654316,-500.0,0.00024383,2]
[329428458,1718334654334,-500.0,0.00024383,2]
[329428459,1718334654346,-4173.13,0.00024383,2]
[329428460,1718334654372,-3425.33,0.00024383,2]
[329428461,1718334654387,-542.58,0.00024383,2]
[329428462,1718334654406,-500.0,0.00024383,2]
[329428463,1718334654427,-500.0,0.00024383,2]
[329428464,1718334654446,-572.71,0.00024383,2]
[329428465,1718334654466,-500.0,0.00024383,2]
[329428466,1718334654505,-513.86,0.00024383,2]
[329428467,1718334654544,-1744.82,0.00024383,2]
[329428468,1718334654562,-500.0,0.00024383,2]
[329428469,1718334654599,-500.0,0.00024383,2]
[329428470,1718334654616,-500.0,0.00024383,2]
[329428471,1718334654641,-9699.57,0.00024383,2]
[329428472,1718334654684,-500.0,0.00024383,2]
[329428473,1718334654707,-657.99,0.00024383,2]
[329428474,1718334654723,-500.0,0.00024383,2]
[329428475,1718334654739,-703.46,0.00024383,2]
[329428476,1718334654751,-8677.51,0.00024383,2]
[329428477,1718334654773,-500.0,0.00024383,2]
[329428478,1718334654790,-793.99,0.00024383,2]
[329428479,1718334654814,-500.0,0.00024383,2]
[329428480,1718334654889,-500.0,0.00024383,2]
[329428481,1718334654904,-500.0,0.00024383,2]
[329428482,1718334654917,-724.9,0.00024383,2]
[329428483,1718334654932,-752.33,0.00024383,2]
[329428484,1718334654944,-500.0,0.00024383,2]
[329428485,1718334654958,-500.0,0.00024383,2]
[329428486,1718334654970,-2014.78,0.00024383,2]
[329428487,1718334654987,-500.0,0.00024383,2]
[329428488,1718334654999,-500.0,0.00024383,2]
[329428489,1718334655015,-3196.41,0.00024383,2]
[329428490,1718334655031,-2105.23,0.00024383,2]
[329428491,1718334655046,-500.0,0.00024383,2]
[329428492,1718334655068,-500.0,0.00024383,2]
[329428493,1718334655113,-1047.78,0.00024383,2]
[329428494,1718334655133,-500.0,0.00024383,2]
[329428495,1718334655154,-500.0,0.00024383,2]
[329428496,1718334655169,-579.41,0.00024383,2]
[329428497,1718334655191,-500.0,0.00024383,2]
[329428498,1718334655223,-500.0,0.00024383,2]
[329428499,1718334655240,-629.02,0.00024383,2]
[329428500,1718334655259,-500.0,0.00024383,2]
[329428501,1718334655273,-1491.3,0.00024383,2]
[329428502,1718334655294,-500.0,0.00024383,2]
[329428503,1718334655313,-500.0,0.00024383,2]
[329428504,1718334655325,-500.0,0.00024383,2]
[329428505,1718334655341,-1346.87,0.00024383,2]
[329428506,1718334655356,-1500.12,0.00024383,2]
[329428507,1718334655370,-1897.51,0.00024383,2]
[329428508,1718334655387,-379.12925763,0.00024383,2]
[329428509,1718334655413,-7378.31,0.00024383,2]
[329428510,1718334655427,-500.0,0.00024383,2]
[329428511,1718334655464,-500.0,0.00024383,2]
[329428512,1718334655480,-883.15,0.00024383,2]
[329428513,1718334655495,-500.0,0.00024383,2]
[329428514,1718334655517,-1466.01,0.00024383,2]
[329428515,1718334655544,-538.23,0.00024383,2]
[329428516,1718334655559,-1393.88,0.00024383,2]
[329428517,1718334655592,-908.27,0.00024383,2]
[329428518,1718334655620,-503.87,0.00024383,2]
[329428519,1718334655632,-500.0,0.00024383,2]
[329428520,1718334655651,-500.0,0.00024383,2]
[329428521,1718334655667,-1101.15,0.00024383,2]
[329428522,1718334655695,-688.46,0.00024383,2]
[329428523,1718334655715,-500.0,0.00024383,2]
[329428524,1718334655732,-500.0,0.00024383,2]
[329428525,1718334655747,-500.0,0.00024383,2]
[329428526,1718334655763,-500.0,0.00024383,2]
[329428527,1718334655778,-500.0,0.00024383,2]
[329428528,1718334655795,-1562.9,0.00024383,2]
[329428529,1718334655839,-803.66,0.00024383,2]
[329428530,1718334655860,-921.2,0.00024383,2]
[329428531,1718334655876,-2716.23,0.00024383,2]
[329428532,1718334655889,-1321.78,0.00024383,2]
[329428533,1718334655904,-188.39453978,0.00024383,2]
[329428534,1718334655950,-588.63,0.00024383,2]
[329428535,1718334655964,-500.0,0.00024383,2]
[329428536,1718334655977,-1122.14,0.00024383,2]
[329428537,1718334655989,-1356.88,0.00024383,2]
[329428538,1718334656000,-500.0,0.00024383,2]
[329428539,1718334656012,-500.0,0.00024383,2]
[329428540,1718334656024,-1078.43,0.00024383,2]
[329428541,1718334656048,-500.0,0.00024383,2]
[329428542,1718334656071,-2256.12,0.00024383,2]
[329428543,1718334656083,-1601.08,0.00024383,2]
[329428544,1718334656096,-500.0,0.00024383,2]
[329428546,1718334656107,-1329.44,0.00024383,2]
[329428547,1718334656120,-4448.33,0.00024383,2]
[329428548,1718334656138,-2250.34,0.00024383,2]
[329428549,1718334656150,-1862.54,0.00024383,2]
[329428550,1718334656162,-500.0,0.00024383,2]
[329428551,1718334656173,-323.12138,0.00024383,7]
[329428552,1718334656184,-323.12138,0.00024383,7]
[329428553,1718334656211,-500.0,0.00024383,2]
[329428554,1718334656224,-323.12138,0.00024383,7]
[329428555,1718334656258,-941.91,0.00024383,2]
[329428556,1718334656292,-323.12138,0.00024383,7]
[329428557,1718334656307,-3964.66,0.00024383,2]
[329428558,1718334656342,-500.0,0.00024383,2]
[329428559,1718334656363,-880.01,0.00024383,2]
[329428560,1718334656377,-500.0,0.00024383,2]
[329428561,1718334656388,-822.2,0.00024383,2]
[329428562,1718334656401,-663.82,0.00024383,2]
[329428563,1718334656451,-500.0,0.00024383,2]
[329428564,1718334656468,-500.0,0.00024383,2]
[329428565,1718334656494,-500.0,0.00024383,2]
[329428566,1718334656511,-750.76,0.00024383,2]
[329428567,1718334656543,-500.0,0.00024383,2]
[329428568,1718334656573,-928.63,0.00024383,2]
[329428569,1718334656594,-828.94,0.00024383,2]
[329428570,1718334656640,-500.0,0.00024383,2]
[329428571,1718334656655,-500.0,0.00024383,2]
[329428572,1718334656668,-1352.61,0.00024383,2]
[329428573,1718334656694,-883.79,0.00024383,2]
[329428574,1718334656710,-500.0,0.00024383,2]
[329428576,1718334656734,-500.0,0.00024383,2]
[329428578,1718334656755,-500.0,0.00024383,2]
[329428580,1718334656768,-500.0,0.00024383,2]
[329428582,1718334656782,-942.9,0.00024383,2]
[329428585,1718334656796,-500.0,0.00024383,2]
[329428587,1718334656812,-529.96,0.00024383,2]
[329428589,1718334656833,-836.68,0.00024383,2]
[329428591,1718334656869,-500.0,0.00024383,2]
[329428594,1718334656908,-500.0,0.00024383,2]
[329428595,1718334656921,-500.0,0.00024383,2]
[329428597,1718334656934,-597.88,0.00024383,2]
[329428598,1718334656946,-895.4,0.00024383,2]
[329428600,1718334656968,-1407.97,0.00024383,2]
[329428602,1718334656996,-5187.95,0.00024383,2]
[329428603,1718334657016,-1813.03,0.00024383,2]
[329428604,1718334657049,-500.0,0.00024383,2]
[329428605,1718334657076,-395.41580551,0.00024383,2]
[329428606,1718334657088,-533.07,0.00024383,2]
[329428607,1718334657100,-167.281365,0.00024383,7]
[329428608,1718334657111,-500.0,0.00024383,2]
[329428609,1718334657122,-1563.64,0.00024383,2]
[329428610,1718334657133,-158.36,0.00024384,2]
[329428612,1718334657146,-207.39,0.00024384,2]
[329428614,1718334657158,-281.4,0.00024384,2]
[329428616,1718334657170,-172.89,0.00024384,2]
[329428617,1718334657183,-204.693163,0.00024394,7]
[329428619,1718334657195,-204.693163,0.00024394,7]
[329428621,1718334657210,-3080.78,0.00024553,2]
[329428623,1718334657224,-500.0,0.00024553,2]
[329428626,1718334657238,-500.0,0.00024553,2]
[329428627,1718334657253,-1102.54,0.00024553,2]
[329428628,1718334657267,-500.0,0.00024553,2]
[329428629,1718334657281,-880.75,0.00024553,2]
[329428631,1718334657297,-500.0,0.00024553,2]
[329428632,1718334657312,-500.0,0.00024553,2]
[329428633,1718334657325,-500.0,0.00024553,2]
[329428634,1718334657343,-2052.59,0.00024553,2]
[329428635,1718334657355,-884.26,0.00024553,2]
[329428636,1718334657378,-923.71,0.00024553,2]
[329428637,1718334657392,-1406.6,0.00024553,2]
[329428638,1718334657414,-1638.98,0.00024553,2]
[329428639,1718334657460,-4536.67,0.00024553,2]
[329428641,1718334657489,-500.0,0.00024553,2]
[329428643,1718334657542,-654.46,0.00024553,2]
[329428645,1718334657565,-500.0,0.00024553,2]
[329428647,1718334657579,-1200.59,0.00024553,2]
[329428649,1718334657591,-1003.5,0.00024553,2]
[329428651,1718334657604,-500.0,0.00024657,2]
[329428652,1718334657623,-500.0,0.00024657,2]
[329428654,1718334657639,-500.0,0.00024657,2]
[329428656,1718334657651,-500.0,0.00024657,2]
[329428658,1718334657664,-500.0,0.00024657,2]
[329428660,1718334657691,-532.28,0.00024657,2]
[329428662,1718334657703,-500.0,0.00024657,2]
[329428664,1718334657718,-500.0,0.00024657,2]
[329428666,1718334657735,-500.0,0.00024657,2]
[329428668,1718334657760,-500.0,0.00024657,2]
[329428670,1718334657774,-254.56822774,0.00024657,2]
[329428671,1718334657794,-500.0,0.00024657,2]
[329428673,1718334657806,-500.0,0.00024657,2]
[329428675,1718334657832,-500.0,0.00024657,2]
[329428677,1718334657845,-500.0,0.00024657,2]
[329428679,1718334657861,-500.0,0.00024657,2]
[329428681,1718334657885,-500.0,0.00024657,2]
[329428683,1718334657905,-500.0,0.00024657,2]
[329428685,1718334657920,-500.0,0.00024657,2]
[329428688,1718334657945,-500.0,0.00024657,2]
[329428690,1718334657997,-500.0,0.00024657,2]
[329428692,1718334658010,-500.0,0.00024657,2]
[329428695,1718334658034,-500.0,0.00024657,2]
[329428696,1718334658047,-500.0,0.00024657,2]
[329428698,1718334658061,-500.0,0.00024657,2]
[329428700,1718334658086,-357.36264773,0.00024657,2]
[329428702,1718334658097,-159.09244481,0.00024657,2]
[329428703,1718334658109,-500.0,0.00024657,2]
[329428705,1718334658122,-500.0,0.00024657,2]
[329428708,1718334658156,-500.0,0.00024657,2]
[329428710,1718334658175,-500.0,0.00024657,2]
[329428712,1718334658195,-500.0,0.00024657,2]
[329428714,1718334658210,-500.0,0.00024657,2]
[329428716,1718334658229,-500.0,0.00024657,2]
[329428718,1718334658242,-526.46,0.00024657,2]
[329428720,1718334658259,-500.0,0.00024657,2]
[329428721,1718334658270,-500.0,0.00024657,2]
[329428723,1718334658284,-500.0,0.00024657,2]
[329428725,1718334658295,-500.0,0.00024657,2]
[329428727,1718334658309,-500.0,0.00024657,2]
[329428729,1718334658340,-150.0,0.00024657,2]
[329428731,1718334658359,-500.0,0.00024657,2]
[329428734,1718334658382,-500.0,0.00024657,2]
[329428735,1718334658416,-500.0,0.00024657,2]
[329428737,1718334658436,-500.0,0.00024657,2]
[329428738,1718334658461,-500.0,0.00024657,2]
[329428740,1718334658472,-500.0,0.00024657,2]
[329428742,1718334658487,-204.693163,0.00024657,7]
[329428744,1718334658501,-204.693163,0.00024657,7]
[329428746,1718334658560,-500.0,0.00024657,2]
[329428748,1718334658575,-204.693163,0.00024657,7]
[329428750,1718334658599,-500.0,0.00024657,2]
[329428751,1718334658613,-204.693163,0.00024657,7]
[329428753,1718334658628,-500.0,0.00024657,2]
[329428755,1718334658658,-500.0,0.00024657,2]
[329428757,1718334658682,-500.0,0.00024657,2]
[329428759,1718334658699,-500.0,0.00024657,2]
[329428762,1718334658722,-500.0,0.00024657,2]
[329428764,1718334658736,-500.0,0.00024657,2]
[329428765,1718334658751,-500.0,0.00024657,2]
[329428767,1718334658779,-500.0,0.00024657,2]
[329428769,1718334658802,-500.0,0.00024657,2]
[329428771,1718334658877,-500.0,0.00024657,2]
[329428772,1718334658907,-500.0,0.00024657,2]
[329428774,1718334658941,-500.0,0.00024657,2]
[329428776,1718334658956,-500.0,0.00024657,2]
[329428778,1718334658971,-500.0,0.00024657,2]
[329428780,1718334658986,-500.0,0.00024657,2]
[329428782,1718334659005,-500.0,0.00024657,2]
[329428784,1718334659016,-500.0,0.00024657,2]
[329428786,1718334659037,-500.0,0.00024657,2]
[329428788,1718334659049,-500.0,0.00024657,2]
[329428790,1718334659071,-500.0,0.00024657,2]
[329428793,1718334659118,-761.79,0.00024657,2]
[329428794,1718334659161,-500.0,0.00024657,2]
[329428796,1718334659189,-500.0,0.00024657,2]
[329428799,1718334659206,-500.0,0.00024657,2]
[329428800,1718334659226,-567.0,0.00024657,2]
[329428802,1718334659262,-500.0,0.00024657,2]
[329428804,1718334659273,-390.84,0.00024657,2]
[329428806,1718334659291,-500.0,0.00024657,2]
[329428808,1718334659303,-500.0,0.00024657,2]
[329428810,1718334659317,-500.0,0.00024657,2]
[329428812,1718334659339,-561.2,0.00024657,2]
[329428814,1718334659352,-500.0,0.00024657,2]
[329428816,1718334659364,-620.78,0.00024657,2]
[329428818,1718334659377,-875.03,0.00024657,2]
[329428820,1718334659392,-500.0,0.00024657,2]
[329428822,1718334659404,-500.0,0.00024657,2]
[329428824,1718334659417,-500.0,0.00024657,2]
[329428826,1718334659450,-628.64,0.00024657,2]
[329428829,1718334659464,-1336.92,0.00024657,2]
[329428830,1718334659479,-500.0,0.00024657,2]
[329428832,1718334659491,-500.0,0.00024657,2]
[329428834,1718334659504,-3425.33,0.00024657,2]
[329428836,1718334659517,-4173.13,0.00024657,2]
[329428838,1718334659543,-500.0,0.00024657,2]
[329428840,1718334659565,-504.12065803,0.00024657,2]
[329428842,1718334659585,-572.71,0.00024657,2]
[329428844,1718334659598,-500.0,0.00024657,2]
[329428846,1718334659621,-513.86,0.00024657,2]
[329428847,1718334659632,-1744.82,0.00024657,2]
[329428849,1718334659668,-434.02925314,0.00024657,2]
[329428851,1718334659698,-500.0,0.00024657,2]
[329428853,1718334659722,-500.0,0.00024657,2]
[329428855,1718334659739,-9699.57,0.00024657,2]
[329428857,1718334659761,-500.0,0.00024657,2]
[329428859,1718334659797,-657.99,0.00024657,2]
[329428862,1718334659814,-500.0,0.00024657,2]
[329428864,1718334659833,-703.46,0.00024657,2]
[329428866,1718334659855,-8677.51,0.00024657,2]
[329428868,1718334659873,-500.0,0.00024657,2]
[329428870,1718334659892,-793.99,0.00024657,2]
[329428872,1718334659920,-500.0,0.00024657,2]
[329428874,1718334659940,-500.0,0.00024657,2]
[329428876,1718334659953,-724.9,0.00024657,2]
[329428878,1718334659968,-500.0,0.00024657,2]
[329428880,1718334659981,-752.33,0.00024657,2]
[329428882,1718334659994,-500.0,0.00024657,2]
[329428884,1718334660019,-2014.78,0.00024657,2]
[329428885,1718334660037,-500.0,0.00024657,2]
[329428886,1718334660053,-500.0,0.00024657,2]
[329428888,1718334660066,-500.0,0.00024657,2]
[329428890,1718334660080,-3196.41,0.00024657,2]
[329428892,1718334660092,-2105.23,0.00024657,2]
[329428893,1718334660132,-500.0,0.00024657,2]
[329428896,1718334660184,-500.0,0.00024657,2]
[329428898,1718334660196,-1047.78,0.00024657,2]
[329428900,1718334660208,-500.0,0.00024657,2]
[329428901,1718334660220,-500.0,0.00024657,2]
[329428904,1718334660241,-579.41,0.00024657,2]
[329428906,1718334660253,-446.81455316,0.00024657,2]
[329428908,1718334660268,-500.0,0.00024657,2]
[329428910,1718334660281,-629.02,0.00024657,2]
[329428912,1718334660293,-500.0,0.00024657,2]
[329428913,1718334660316,-1491.3,0.00024657,2]
[329428915,1718334660335,-500.0,0.00024657,2]
[329428916,1718334660356,-500.0,0.00024657,2]
[329428919,1718334660384,-500.0,0.00024657,2]
[329428921,1718334660405,-1346.87,0.00024657,2]
[329428922,1718334660415,-1500.12,0.00024657,2]
[329428924,1718334660429,-1897.51,0.00024657,2]
[329428926,1718334660463,-7378.31,0.00024657,2]
[329428928,1718334660475,-500.0,0.00024657,2]
[329428930,1718334660506,-500.0,0.00024657,2]
[329428932,1718334660517,-883.15,0.00024657,2]
[329428934,1718334660548,-500.0,0.00024657,2]
[329428936,1718334660570,-1466.01,0.00024657,2]
[329428938,1718334660620,-538.23,0.00024657,2]
[329428940,1718334660636,-1393.88,0.00024657,2]
[329428942,1718334660649,-908.27,0.00024657,2]
[329428944,1718334660663,-503.87,0.00024657,2]
[329428946,1718334660679,-500.0,0.00024657,2]
[329428948,1718334660692,-500.0,0.00024657,2]
[329428950,1718334660712,-1101.15,0.00024657,2]
[329428952,1718334660731,-688.46,0.00024657,2]
[329428954,1718334660744,-500.0,0.00024657,2]
[329428955,1718334660757,-500.0,0.00024657,2]
[329428957,1718334660784,-500.0,0.00024657,2]
[329428959,1718334660814,-500.0,0.00024657,2]
[329428961,1718334660830,-500.0,0.00024657,2]
[329428963,1718334660848,-1562.9,0.00024657,2]
[329428965,1718334660870,-803.66,0.00024657,2]
[329428967,1718334660882,-921.2,0.00024657,2]
[329428976,1718334661112,-2716.23,0.00024657,2]
[329428979,1718334661135,-1321.78,0.00024657,2]
[329428980,1718334661162,-588.63,0.00024657,2]
[329428982,1718334661173,-500.0,0.00024657,2]
[329428984,1718334661190,-1122.14,0.00024657,2]
[329428986,1718334661207,-1356.88,0.00024657,2]
[329428988,1718334661227,-500.0,0.00024657,2]
[329428990,1718334661240,-500.0,0.00024657,2]
[329428992,1718334661267,-1078.43,0.00024657,2]
[329428994,1718334661278,-500.0,0.00024657,2]